[Event "2nd Cambridge Open 2024"]
[Site "Cambridge"]
[Date "2024.02.20"]
[Round "3.40"]
[White "Myall, Ivan J"]
[Black "Maton, Emily"]
[Result "1-0"]
[ECO "C02"]
[WhiteElo "1951"]
[BlackElo "1736"]
[Annotator "RC"]
[PlyCount "117"]
[EventDate "2024.02.18"]
[EventType "swiss"]
[EventCountry "ENG"]
[SourceTitle "playchess.com"]
[Source "ChessBase"]
[SourceQuality "1"]
[TimeControl "5400+30"]

1. d4 {[%emt 0:00:03]} e6 {[%emt 0:00:02]} 2. e4 {[%emt 0:00:29]} d5 {[%emt 0:00:05]} 3. e5 {[%emt 0:00:07]} c5 {[%emt 0:00:05]} 4. c3 {[%emt 0:00:05]} Nc6 {[%emt 0:00:07]} 5. Be3 {[%emt 0:00:10]} Nh6 {[%emt 0:00:15]} 6. Nf3 {[%emt 0:01:47]} Nf5 {[%emt 0:00:32]} 7. Bd3 {[%emt 0:00:20]} Nxe3 {[%emt 0:01:01]} 8. fxe3 {[%emt 0:00:04]} Be7 {[%emt 0:03:04]} 9. O-O {[%emt 0:00:24]} Qc7 {[%emt 0:01:46]} 10. Nbd2 {[%emt 0:05:48]} Bd7 {[%emt 0:12:37]} 11. Rc1 {[%emt 0:00:25]} O-O-O {[%emt 0:01:16]} 12. b4 {[%emt 0:07:12]} c4 {[%emt 0:03:57]} 13. Be2 {[%emt 0:04:59]} f6 {[%emt 0:02:42]} 14. a4 {[%emt 0:08:03]} Rhf8 {[%emt 0:04:51]} 15. b5 {[%emt 0:05:23]} Na5 {[%emt 0:00:20]} 16. e4 {[%emt 0:00:49]} Kb8 {[%emt 0:04:41]} 17. exd5 {[%emt 0:04:54]} exd5 {[%emt 0:00:19]} 18. Qc2 {[%emt 0:00:11]} f5 {[%emt 0:06:37]} 19. Rce1 {[%emt 0:58:47]} g5 {[%emt 0:02:55]} 20. e6 {[%emt 0:00:00]} Bc8 {[%emt 0:02:07]} 21. Bd1 {[%emt 0:00:00]} Rf6 {[%emt 0:09:43]} 22. Nxg5 {[%emt 0:00:00]} Rg6 {[%emt 0:12:04]} 23. Ngf3 {[%emt 0:00:00]} Bxe6 {[%emt 0:04:08]} 24. Ne5 {[%emt 0:00:00]} Rh6 {[%emt 0:01:22]} 25. Ndf3 {[%emt 0:00:00]} Rg8 {[%emt 0:03:47]} 26. Qd2 {[%emt 0:00:00]} Rf6 {[%emt 0:01:09]} 27. Bc2 {[%emt 0:00:00]} Bd6 {[%emt 0:05:53]} 28. Nh4 {[%emt 0:00:00]} Rgf8 {[%emt 0:03:00]} 29. Rf4 {[%emt 0:00:00]} Qg7 {[%emt 0:04:47]} 30. Qf2 {[%emt 0:00:00]} Qg5 {[%emt 0:01:30]} 31. Rf1 {[%emt 0:00:00]} Rh6 {[%emt 0:05:59]} 32. Nxf5 {[%emt 0:00:00]} Rhf6 {[%emt 0:00:47]} 33. h4 {[%emt 0:03:09]} Qg8 {[%emt 0:01:15]} 34. Ng4 {[%emt 0:04:21]} Bxf4 {[%emt 0:01:38]} 35. Qxf4+ {[%emt 0:00:00]} Ka8 {[%emt 0:00:11]} 36. Nxf6 {[%emt 0:00:00]} Rxf6 {[%emt 0:00:04]} 37. Qe5 {[%emt 0:00:00]} Qf8 {[%emt 0:00:50]} 38. Ne3 {[%emt 0:00:04]} Rxf1+ {[%emt 0:00:15]} 39. Nxf1 {[%emt 0:00:01]} Bg8 {[%emt 0:00:10]} 40. Qf5 {[%emt 0:00:29]} Qxf5 {[%emt 0:00:17]} 41. Bxf5 {[%emt 0:00:01]} Kb8 {[%emt 0:00:33]} 42. g4 {[%emt 0:00:21]} Kc7 {[%emt 0:00:06]} 43. Kf2 {[%emt 0:00:23]} b6 {[%emt 0:00:26]} 44. g5 {[%emt 0:00:17]} Nb7 {[%emt 0:00:18]} 45. Ng3 {[%emt 0:00:56]} Kd8 {[%emt 0:00:45]} 46. Nh5 {[%emt 0:00:28]} Nd6 {[%emt 0:00:31]} 47. Bc2 {[%emt 0:00:20]} Ne8 {[%emt 0:00:21]} 48. Ke3 {[%emt 0:00:24]} Ke7 {[%emt 0:00:07]} 49. Kf4 {[%emt 0:00:59]} Kf8 {[%emt 0:02:44]} 50. Ke5 {[%emt 0:00:28]} Ke7 {[%emt 0:00:41]} 51. Bf5 {[%emt 0:01:05]} Nd6 {[%emt 0:00:21]} 52. Nf6 {[%emt 0:00:39]} Bf7 {[%emt 0:00:41]} 53. Bxh7 {[%emt 0:00:21]} Be6 {[%emt 0:00:23]} 54. Nxd5+ {[%emt 0:00:42]} Kd7 {[%emt 0:00:10]} 55. Nf6+ {[%emt 0:00:23]} Ke7 {[%emt 0:00:06]} 56. g6 {[%emt 0:00:56]} Nf5 {[%emt 0:00:18]} 57. Nd5+ {[%emt 0:00:55]} Kd7 {[%emt 0:00:17]} 58. Nf4 {[%emt 0:00:32]} Nxh4 {[%emt 0:00:39]} 59. Nxe6 {[%emt 0:00:08]} 1-0

[Event "2nd Cambridge Open 2024"]
[Site "Cambridge"]
[Date "2024.02.20"]
[Round "3.41"]
[White "Spanton, Tim R"]
[Black "Reynolds, D Ian W"]
[Result "1/2-1/2"]
[ECO "E52"]
[WhiteElo "1736"]
[BlackElo "1960"]
[Annotator "NA RC"]
[PlyCount "124"]
[EventDate "2024.02.18"]
[EventType "swiss"]
[EventCountry "ENG"]
[SourceTitle "playchess.com"]
[Source "ChessBase"]
[SourceQuality "1"]
[TimeControl "5400+30"]

1. d4 {[%emt 0:00:03]} Nf6 {[%emt 0:00:09]} 2. c4 {[%emt 0:00:04]} e6 {[%emt 0:00:09]} 3. Nc3 {[%emt 0:00:04]} Bb4 {[%emt 0:00:06]} 4. Bd2 {[%emt 0:00:05]} O-O {[%emt 0:00:32]} 5. Nf3 {[%emt 0:00:24]} d5 {[%emt 0:00:37]} 6. e3 {[%emt 0:00:12]} b6 {[%emt 0:02:20]} 7. Rc1 {[%emt 0:01:38]} Bb7 {[%emt 0:07:59]} 8. Bd3 {[%emt 0:01:53]} Nbd7 {[%emt 0:02:31]} 9. cxd5 {[%emt 0:00:50]} exd5 {[%emt 0:01:09]} 10. O-O {[%emt 0:00:42]} Rc8 {[%emt 0:08:48]} 11. Nb5 {[%emt 0:03:18]} Bxd2 {[%emt 0:00:38]} 12. Qxd2 {[%emt 0:00:14]} a6 {[%emt 0:01:55]} 13. Na7 {[%emt 0:00:38]} Ra8 {[%emt 0:00:28]} 14. Nc6 {[%emt 0:00:13]} Qe8 {[%emt 0:05:59]} 15. Qb4 {[%emt 0:02:05]} Bxc6 {[%emt 0:03:08]} 16. Rxc6 {[%emt 0:00:10]} Nc5 {[%emt 0:01:26]} 17. Rxc5 {[%emt 0:00:50]} bxc5 {[%emt 0:00:09]} 18. Qxc5 {[%emt 0:00:14]} Qd7 {[%emt 0:04:10]} 19. Rc1 {[%emt 0:03:21]} a5 {[%emt 0:11:00]} 20. Bb5 {[%emt 0:01:10]} Qd6 {[%emt 0:00:17]} 21. Qc2 {[%emt 0:04:46]} g6 {[%emt 0:04:20]} 22. Ne5 {[%emt 0:01:28]} Rab8 {[%emt 0:03:23]} 23. Ba4 {[%emt 0:01:01]} c5 {[%emt 0:08:22]} 24. Nc6 {[%emt 0:03:05]} c4 {[%emt 0:03:27]} 25. Nxb8 {[%emt 0:00:35]} Rxb8 {[%emt 0:00:11]} 26. b3 {[%emt 0:00:32]} Qa3 {[%emt 0:06:53]} 27. h3 {[%emt 0:11:24]} Kg7 {[%emt 0:01:18]} 28. f3 {[%emt 0:06:22]} Rc8 {[%emt 0:03:56]} 29. Bb5 {[%emt 0:05:54]} Rb8 {[%emt 0:03:28]} 30. Ba4 {[%emt 0:00:33]} Rc8 {[%emt 0:00:18]} 31. Qd2 {[%emt 0:01:52]} cxb3 {[%emt 0:00:58]} 32. Rxc8 {[%emt 0:00:33]} bxa2 {[%emt 0:00:14]} 33. Rc1 {[%emt 0:01:12]} a1=Q {[%emt 0:16:42]} 34. Rxa1 {[%emt 0:50:05]} Qxa1+ {[%emt 0:00:30]} 35. Qd1 {[%emt 0:00:30]} Qxd1+ {[%emt 0:00:00]} 36. Bxd1 {[%emt 0:00:00]} Nd7 {[%emt 0:00:00]} 37. Kf2 {[%emt 0:00:00]} Nb6 {[%emt 0:00:00]} 38. Ke2 {[%emt 0:00:00]} Kf6 {[%emt 0:00:00]} 39. Kd3 {[%emt 0:00:00]} Ke6 {[%emt 0:00:00]} 40. e4 {[%emt 0:00:00]} f6 {[%emt 0:00:00]} 41. Bb3 {[%emt 0:00:00]} Kd6 {[%emt 0:00:00]} 42. Kc3 {[%emt 0:00:00]} g5 {[%emt 0:00:00]} 43. Ba2 {[%emt 0:00:00]} h6 {[%emt 0:00:00]} 44. Kd3 {[%emt 0:00:00]} Ke6 {[%emt 0:00:00]} 45. g4 {[%emt 0:00:00]} Kd6 {[%emt 0:00:00]} 46. Bb3 {[%emt 0:00:00]} Ke6 {[%emt 0:00:00]} 47. exd5+ {[%emt 0:00:00]} Kd6 {[%emt 0:00:00]} 48. Ke4 {[%emt 0:00:00]} a4 {[%emt 0:00:00]} 49. Ba2 {[%emt 0:00:00]} a3 {[%emt 0:00:00]} 50. Kf5 {[%emt 0:00:00]} Nxd5 {[%emt 0:00:00]} 51. Bb3 {[%emt 0:00:00]} Nf4 {[%emt 0:00:00]} 52. Kxf6 {[%emt 0:00:00]} Nxh3 {[%emt 0:00:00]} 53. Kg6 {[%emt 0:00:00]} Ng1 {[%emt 0:00:00]} 54. Kxh6 {[%emt 0:00:00]} Nxf3 {[%emt 0:00:00]} 55. Ba2 {[%emt 0:00:00]} Nxd4 {[%emt 0:00:00]} 56. Kxg5 {[%emt 0:00:00]} Ke7 {[%emt 0:00:00]} 57. Kg6 {[%emt 0:00:00]} Kf8 {[%emt 0:00:00]} 58. Kf6 {[%emt 0:00:00]} Nc2 {[%emt 0:00:00]} 59. Bb1 {[%emt 0:00:00]} Nb4 {[%emt 0:00:00]} 60. g5 {[%emt 0:00:00]} a2 {[%emt 0:13:00]} 61. Bxa2 {[%emt 0:13:00]} Nxa2 {[%emt 0:00:00]} 62. g6 {[%emt 0:00:00]} Nb4 {[%emt 0:00:00]} 1/2-1/2

[Event "2nd Cambridge Open 2024"]
[Site "Cambridge"]
[Date "2024.02.20"]
[Round "3.42"]
[White "Jefremov, Aivar"]
[Black "Cole, James"]
[Result "1/2-1/2"]
[ECO "A48"]
[WhiteElo "1656"]
[BlackElo "1940"]
[Annotator "RC"]
[PlyCount "72"]
[EventDate "2024.02.18"]
[EventType "swiss"]
[EventCountry "ENG"]
[SourceTitle "playchess.com"]
[Source "ChessBase"]
[SourceQuality "1"]
[TimeControl "5400+30"]

1. d4 {[%emt 0:00:02]} Nf6 {[%emt 0:00:05]} 2. Nf3 {[%emt 0:00:41]} g6 {[%emt 0:00:03]} 3. Bf4 {[%emt 0:00:28]} Bg7 {[%emt 0:00:09]} 4. e3 {[%emt 0:00:28]} d6 {[%emt 0:00:12]} 5. Be2 {[%emt 0:00:33]} Nh5 {[%emt 0:04:51]} 6. Bg5 {[%emt 0:03:50]} h6 {[%emt 0:00:38]} 7. Bh4 {[%emt 0:00:12]} g5 {[%emt 0:00:14]} 8. Bg3 {[%emt 0:01:07]} Nxg3 {[%emt 0:00:09]} 9. hxg3 {[%emt 0:00:06]} c5 {[%emt 0:05:23]} 10. c3 {[%emt 0:01:26]} Bf5 {[%emt 0:01:46]} 11. Nbd2 {[%emt 0:01:23]} O-O {[%emt 0:08:17]} 12. g4 {[%emt 0:09:13]} Bg6 {[%emt 0:05:27]} 13. Qb3 {[%emt 0:01:40]} Qb6 {[%emt 0:04:29]} 14. Qxb6 {[%emt 0:07:32]} axb6 {[%emt 0:00:06]} 15. Bb5 {[%emt 0:01:53]} Nc6 {[%emt 0:06:57]} 16. Nf1 {[%emt 0:16:07]} Ra5 {[%emt 0:06:47]} 17. Be2 {[%emt 0:06:37]} b5 {[%emt 0:07:53]} 18. Ng3 {[%emt 0:05:36]} e6 {[%emt 0:03:51]} 19. Nd2 {[%emt 0:03:49]} Rfa8 {[%emt 0:03:14]} 20. a3 {[%emt 0:03:12]} b4 {[%emt 0:05:11]} 21. Nc4 {[%emt 0:02:44]} bxa3 {[%emt 0:00:54]} 22. Rxa3 {[%emt 0:14:48]} Rxa3 {[%emt 0:00:34]} 23. Nxa3 {[%emt 0:00:05]} cxd4 {[%emt 0:01:37]} 24. exd4 {[%emt 0:01:16]} d5 {[%emt 0:02:50]} 25. Kd2 {[%emt 0:07:26]} Bf8 {[%emt 0:01:21]} 26. Nc2 {[%emt 0:01:03]} Na5 {[%emt 0:10:18]} 27. Bd3 {[%emt 0:03:56]} Nb3+ {[%emt 0:04:13]} 28. Ke3 {[%emt 0:00:39]} Ra2 {[%emt 0:00:55]} 29. Bxg6 {[%emt 0:00:20]} fxg6 {[%emt 0:00:06]} 30. Rb1 {[%emt 0:00:19]} Bd6 {[%emt 0:01:35]} 31. Ne2 {[%emt 0:00:15]} Na5 {[%emt 0:03:07]} 32. Kd3 {[%emt 0:01:44]} Nb3 {[%emt 0:03:06]} 33. f3 {[%emt 0:01:21]} Kf7 {[%emt 0:04:15]} 34. Ne3 {[%emt 0:00:10]} Na5 {[%emt 0:00:13]} 35. Nc2 {[%emt 0:00:14]} Nc4 {[%emt 0:00:12]} 36. b3 {[%emt 0:00:21]} Na3 {[%emt 0:01:41]} 1/2-1/2

[Event "2nd Cambridge Open 2024"]
[Site "Cambridge"]
[Date "2024.02.20"]
[Round "3.43"]
[White "Dierssen Garcia-Barredo, Guiller"]
[Black "Blauhut, Anna"]
[Result "1-0"]
[ECO "C54"]
[WhiteElo "1937"]
[BlackElo "1534"]
[Annotator "RC"]
[PlyCount "57"]
[EventDate "2024.02.18"]
[EventType "swiss"]
[EventCountry "ENG"]
[SourceTitle "playchess.com"]
[Source "ChessBase"]
[SourceQuality "1"]
[TimeControl "5400+30"]

1. e4 {[%emt 0:00:03]} e5 {[%emt 0:00:07]} 2. Nf3 {[%emt 0:00:05]} Nc6 {[%emt 0:00:16]} 3. d4 {[%emt 0:00:09]} exd4 {[%emt 0:00:27]} 4. Bc4 {[%emt 0:00:07]} Bc5 {[%emt 0:00:14]} 5. c3 {[%emt 0:00:07]} Nf6 {[%emt 0:00:22]} 6. cxd4 {[%emt 0:00:08]} Bb4+ {[%emt 0:00:19]} 7. Bd2 {[%emt 0:00:08]} d5 {[%emt 0:04:04]} 8. exd5 {[%emt 0:01:39]} Bxd2+ {[%emt 0:02:35]} 9. Nbxd2 {[%emt 0:00:17]} Nxd5 {[%emt 0:00:44]} 10. O-O {[%emt 0:00:06]} O-O {[%emt 0:01:06]} 11. Rc1 {[%emt 0:00:05]} Nf6 {[%emt 0:01:28]} 12. Nb3 {[%emt 0:08:56]} Bg4 {[%emt 0:00:39]} 13. h3 {[%emt 0:02:14]} Bh5 {[%emt 0:06:56]} 14. Re1 {[%emt 0:02:41]} Qd6 {[%emt 0:03:06]} 15. g4 {[%emt 0:06:00]} Bg6 {[%emt 0:02:10]} 16. Ne5 {[%emt 0:03:37]} Nb4 {[%emt 0:07:58]} 17. a3 {[%emt 0:05:54]} Nbd5 {[%emt 0:02:18]} 18. Qf3 {[%emt 0:00:09]} c6 {[%emt 0:02:31]} 19. Nc5 {[%emt 0:02:01]} Nb6 {[%emt 0:04:54]} 20. Nxb7 {[%emt 0:18:02]} Qxd4 {[%emt 0:04:19]} 21. Nxc6 {[%emt 0:01:08]} Qxb2 {[%emt 0:07:58]} 22. Nd6 {[%emt 0:01:53]} Nxc4 {[%emt 0:03:46]} 23. Nxc4 {[%emt 0:05:11]} Qb5 {[%emt 0:01:31]} 24. Re5 {[%emt 0:05:41]} Qa6 {[%emt 0:02:03]} 25. h4 {[%emt 0:07:12]} Rfe8 {[%emt 0:05:44]} 26. Nd6 {[%emt 0:13:56]} Rf8 {[%emt 0:04:55]} 27. h5 {[%emt 0:03:10]} Bd3 {[%emt 0:00:45]} 28. g5 {[%emt 0:00:20]} Nxh5 {[%emt 0:05:48]} 29. Ne7+ {[%emt 0:01:24]} 1-0

[Event "2nd Cambridge Open 2024"]
[Site "Cambridge"]
[Date "2024.02.20"]
[Round "3.44"]
[White "Chiang, Richard"]
[Black "Hanache, Kai"]
[Result "0-1"]
[ECO "A36"]
[WhiteElo "1609"]
[BlackElo "1926"]
[Annotator "NA RC"]
[PlyCount "136"]
[EventDate "2024.02.18"]
[EventType "swiss"]
[EventCountry "ENG"]
[SourceTitle "playchess.com"]
[Source "ChessBase"]
[SourceQuality "1"]
[TimeControl "5400+30"]

1. c4 {[%emt 0:00:02]} Nf6 {[%emt 0:00:06]} 2. Nc3 {[%emt 0:00:22]} c5 {[%emt 0:00:39]} 3. e4 {[%emt 0:00:39]} Nc6 {[%emt 0:00:14]} 4. g3 {[%emt 0:00:25]} d6 {[%emt 0:01:40]} 5. Bg2 {[%emt 0:00:50]} g6 {[%emt 0:03:00]} 6. Nge2 {[%emt 0:00:20]} Bg7 {[%emt 0:00:37]} 7. O-O {[%emt 0:00:11]} O-O {[%emt 0:00:13]} 8. d3 {[%emt 0:00:14]} h6 {[%emt 0:00:41]} 9. h3 {[%emt 0:00:42]} a6 {[%emt 0:00:45]} 10. Be3 {[%emt 0:01:26]} Rb8 {[%emt 0:02:01]} 11. Qd2 {[%emt 0:01:05]} Kh7 {[%emt 0:01:02]} 12. a4 {[%emt 0:00:37]} Bd7 {[%emt 0:03:44]} 13. Rab1 {[%emt 0:01:37]} Qa5 {[%emt 0:01:42]} 14. b3 {[%emt 0:01:56]} Na7 {[%emt 0:01:16]} 15. Nd5 {[%emt 0:03:00]} Qxd2 {[%emt 0:00:41]} 16. Bxd2 {[%emt 0:01:22]} Nxd5 {[%emt 0:00:54]} 17. exd5 {[%emt 0:02:04]} b5 {[%emt 0:01:00]} 18. a5 {[%emt 0:06:59]} Bf5 {[%emt 0:04:04]} 19. Nf4 {[%emt 0:04:51]} g5 {[%emt 0:05:14]} 20. g4 {[%emt 0:00:24]} gxf4 {[%emt 0:00:05]} 21. gxf5 {[%emt 0:00:31]} Be5 {[%emt 0:00:18]} 22. Be4 {[%emt 0:03:58]} Rg8+ {[%emt 0:00:24]} 23. Kh1 {[%emt 0:00:44]} f6 {[%emt 0:04:30]} 24. Rg1 {[%emt 0:01:42]} Rg5 {[%emt 0:00:46]} 25. Rg4 {[%emt 0:10:44]} bxc4 {[%emt 0:01:21]} 26. dxc4 {[%emt 0:01:14]} Rxg4 {[%emt 0:03:20]} 27. hxg4 {[%emt 0:00:12]} Rg8 {[%emt 0:04:23]} 28. Bf3 {[%emt 0:02:30]} Rb8 {[%emt 0:00:39]} 29. Kh2 {[%emt 0:01:50]} Rb7 {[%emt 0:01:18]} 30. Be4 {[%emt 0:01:45]} Nc8 {[%emt 0:00:57]} 31. Kg2 {[%emt 0:00:50]} Na7 {[%emt 0:00:24]} 32. Kf3 {[%emt 0:00:39]} Rb8 {[%emt 0:00:09]} 33. Bxf4 {[%emt 0:00:35]} Bxf4 {[%emt 0:00:10]} 34. Kxf4 {[%emt 0:00:10]} Rb4 {[%emt 0:00:02]} 35. Ke3 {[%emt 0:01:34]} Nc8 {[%emt 0:00:20]} 36. Bc2 {[%emt 0:01:44]} Na7 {[%emt 0:00:43]} 37. Rh1 {[%emt 0:01:36]} Kg7 {[%emt 0:00:13]} 38. f4 {[%emt 0:01:55]} Nc8 {[%emt 0:00:17]} 39. Kf3 {[%emt 0:01:21]} Na7 {[%emt 0:00:13]} 40. Re1 {[%emt 0:00:35]} Kf7 {[%emt 0:00:09]} 41. Kg3 {[%emt 0:00:32]} Rb8 {[%emt 0:00:16]} 42. Kh4 {[%emt 0:01:34]} Rb7 {[%emt 0:00:48]} 43. Kh5 {[%emt 0:01:50]} Rb8 {[%emt 0:00:21]} 44. Re2 {[%emt 0:03:14]} Nc8 {[%emt 0:01:01]} 45. g5 {[%emt 0:03:09]} hxg5 {[%emt 0:01:02]} 46. fxg5 {[%emt 0:00:22]} fxg5 {[%emt 0:00:41]} 47. Kxg5 {[%emt 0:00:11]} Na7 {[%emt 0:00:03]} 48. Rh2 {[%emt 0:05:44]} Rg8+ {[%emt 0:00:33]} 49. Kf4 {[%emt 0:00:12]} Rg1 {[%emt 0:00:05]} 50. Ke3 {[%emt 0:01:41]} Rg3+ {[%emt 0:00:29]} 51. Kd2 {[%emt 0:01:39]} Rg7 {[%emt 0:00:24]} 52. Rh8 {[%emt 0:00:55]} Rg8 {[%emt 0:00:21]} 53. Rxg8 {[%emt 0:03:57]} Kxg8 {[%emt 0:00:03]} 54. Kc3 {[%emt 0:00:35]} Kf7 {[%emt 0:00:27]} 55. b4 {[%emt 0:00:46]} Kf6 {[%emt 0:00:16]} 56. Bd3 {[%emt 0:01:16]} cxb4+ {[%emt 0:01:19]} 57. Kxb4 {[%emt 0:00:15]} Ke5 {[%emt 0:00:21]} 58. Kc3 {[%emt 0:06:16]} Nc8 {[%emt 0:01:36]} 59. c5 {[%emt 0:08:01]} dxc5 {[%emt 0:00:40]} 60. Bxa6 {[%emt 0:00:31]} Nd6 {[%emt 0:00:17]} 61. Bb7 {[%emt 0:06:03]} Nxb7 {[%emt 0:02:10]} 62. a6 {[%emt 0:00:10]} Nd6 {[%emt 0:00:04]} 63. a7 {[%emt 0:02:41]} Nb5+ {[%emt 0:00:04]} 64. Kc4 {[%emt 0:00:10]} Nxa7 {[%emt 0:00:05]} 65. Kxc5 {[%emt 0:00:02]} Nc8 {[%emt 0:00:14]} 66. Kc6 {[%emt 0:00:19]} Nd6 {[%emt 0:00:09]} 67. Kd7 {[%emt 0:01:14]} Nxf5 {[%emt 0:00:17]} 68. Kc6 {[%emt 0:00:28]} Kd4 {[%emt 0:00:07]} 0-1

[Event "2nd Cambridge Open 2024"]
[Site "Cambridge"]
[Date "2024.02.20"]
[Round "3.45"]
[White "Gooding, Ian"]
[Black "Ismail, Mohammed Aayan"]
[Result "0-1"]
[ECO "B10"]
[WhiteElo "1923"]
[BlackElo "2115"]
[Annotator "RC"]
[PlyCount "196"]
[EventDate "2024.02.18"]
[EventType "swiss"]
[EventCountry "ENG"]
[SourceTitle "playchess.com"]
[Source "ChessBase"]
[SourceQuality "1"]
[TimeControl "5400+30"]

1. e4 {[%emt 0:00:01]} c6 {[%emt 0:01:23]} 2. c4 {[%emt 0:00:08]} d5 {[%emt 0:00:06]} 3. cxd5 {[%emt 0:00:07]} cxd5 {[%emt 0:00:04]} 4. exd5 {[%emt 0:00:06]} Nf6 {[%emt 0:00:05]} 5. Nc3 {[%emt 0:00:07]} Nxd5 {[%emt 0:00:05]} 6. Nf3 {[%emt 0:00:05]} e6 {[%emt 0:00:15]} 7. Bc4 {[%emt 0:00:10]} Nc6 {[%emt 0:01:05]} 8. O-O {[%emt 0:00:30]} Nb6 {[%emt 0:00:51]} 9. Bb3 {[%emt 0:04:38]} Bc5 {[%emt 0:03:23]} 10. Nb5 {[%emt 0:05:28]} O-O {[%emt 0:04:52]} 11. d4 {[%emt 0:01:22]} Be7 {[%emt 0:01:48]} 12. Bf4 {[%emt 0:06:11]} Bd7 {[%emt 0:08:29]} 13. Rc1 {[%emt 0:16:18]} Rc8 {[%emt 0:17:29]} 14. a3 {[%emt 0:12:56]} Nd5 {[%emt 0:10:59]} 15. Bg3 {[%emt 0:03:34]} Be8 {[%emt 0:02:14]} 16. Qd3 {[%emt 0:03:26]} Qb6 {[%emt 0:09:37]} 17. Bc2 {[%emt 0:11:51]} g6 {[%emt 0:00:12]} 18. Nc3 {[%emt 0:01:12]} Qxb2 {[%emt 0:04:53]} 19. Nxd5 {[%emt 0:07:05]} exd5 {[%emt 0:00:12]} 20. Rb1 {[%emt 0:01:00]} Qxa3 {[%emt 0:00:34]} 21. Rxb7 {[%emt 0:01:31]} Qa5 {[%emt 0:04:56]} 22. Bb3 {[%emt 0:03:41]} a6 {[%emt 0:03:12]} 23. Bf4 {[%emt 0:03:27]} f6 {[%emt 0:02:40]} 24. Bh6 {[%emt 0:04:06]} Rf7 {[%emt 0:00:39]} 25. Qe3 {[%emt 0:03:42]} Rd8 {[%emt 0:04:18]} 26. Rc1 {[%emt 0:04:06]} Rd7 {[%emt 0:03:23]} 27. Rxd7 {[%emt 0:02:33]} Bxd7 {[%emt 0:00:01]} 28. Qd3 {[%emt 0:01:40]} Bb4 {[%emt 0:01:47]} 29. Nd2 {[%emt 0:00:27]} Bf5 {[%emt 0:02:26]} 30. Qe2 {[%emt 0:00:37]} Bd7 {[%emt 0:06:48]} 31. Nf3 {[%emt 0:00:54]} Ne7 {[%emt 0:01:36]} 32. Qc2 {[%emt 0:00:51]} Nf5 {[%emt 0:01:26]} 33. Bf4 {[%emt 0:00:09]} Re7 {[%emt 0:01:15]} 34. g4 {[%emt 0:00:23]} Ng7 {[%emt 0:00:22]} 35. g5 {[%emt 0:00:22]} fxg5 {[%emt 0:01:25]} 36. Bxg5 {[%emt 0:00:24]} Re8 {[%emt 0:00:19]} 37. Ne5 {[%emt 0:00:39]} Be6 {[%emt 0:00:26]} 38. Qc6 {[%emt 0:00:18]} Bd2 {[%emt 0:00:59]} 39. Bxd2 {[%emt 0:01:02]} Qxd2 {[%emt 0:00:01]} 40. Bxd5 {[%emt 0:00:14]} Qxd4 {[%emt 0:00:54]} 41. Bxe6+ {[%emt 0:00:58]} Rxe6 {[%emt 0:00:02]} 42. Qc8+ {[%emt 0:00:50]} Re8 {[%emt 0:00:01]} 43. Qc4+ {[%emt 0:00:30]} Qxc4 {[%emt 0:00:18]} 44. Nxc4 {[%emt 0:00:03]} Nf5 {[%emt 0:00:30]} 45. Ra1 {[%emt 0:00:20]} Re6 {[%emt 0:00:06]} 46. f3 {[%emt 0:00:36]} Kg7 {[%emt 0:00:51]} 47. Kf2 {[%emt 0:00:03]} Kf6 {[%emt 0:00:15]} 48. Nd2 {[%emt 0:00:10]} Rc6 {[%emt 0:00:07]} 49. Ne4+ {[%emt 0:00:11]} Ke5 {[%emt 0:00:27]} 50. Ra5+ {[%emt 0:00:49]} Kd4 {[%emt 0:01:11]} 51. Ra4+ {[%emt 0:00:18]} Ke5 {[%emt 0:01:10]} 52. Ke2 {[%emt 0:00:54]} Rc2+ {[%emt 0:00:57]} 53. Nd2 {[%emt 0:00:15]} Rc6 {[%emt 0:01:00]} 54. Ne4 {[%emt 0:00:09]} Nd4+ {[%emt 0:00:17]} 55. Ke3 {[%emt 0:00:16]} Nf5+ {[%emt 0:00:16]} 56. Ke2 {[%emt 0:00:16]} Rb6 {[%emt 0:00:12]} 57. Nd2 {[%emt 0:02:23]} Kd5 {[%emt 0:00:26]} 58. Kd3 {[%emt 0:00:17]} Nd6 {[%emt 0:00:57]} 59. Ra5+ {[%emt 0:00:54]} Nb5 {[%emt 0:00:18]} 60. Ne4 {[%emt 0:00:32]} Rc6 {[%emt 0:01:08]} 61. h4 {[%emt 0:01:04]} Ke5 {[%emt 0:00:06]} 62. Ke3 {[%emt 0:00:36]} Kd5 {[%emt 0:00:21]} 63. Kd3 {[%emt 0:00:06]} h6 {[%emt 0:00:12]} 64. Ra1 {[%emt 0:00:24]} Nc7 {[%emt 0:00:29]} 65. Ra5+ {[%emt 0:00:06]} Nb5 {[%emt 0:00:18]} 66. Ra1 {[%emt 0:00:03]} Re6 {[%emt 0:01:02]} 67. Ra5 {[%emt 0:00:11]} Rb6 {[%emt 0:00:22]} 68. Ra1 {[%emt 0:00:19]} Ke5 {[%emt 0:00:11]} 69. Ke3 {[%emt 0:00:18]} Nc7 {[%emt 0:00:05]} 70. Ra5+ {[%emt 0:01:01]} Rb5 {[%emt 0:02:05]} 71. Ra3 {[%emt 0:00:11]} Nd5+ {[%emt 0:00:06]} 72. Kd3 {[%emt 0:00:54]} Rb6 {[%emt 0:01:12]} 73. Ra5 {[%emt 0:00:54]} Rb3+ {[%emt 0:00:53]} 74. Ke2 {[%emt 0:00:57]} Rb2+ {[%emt 0:01:14]} 75. Kd3 {[%emt 0:00:40]} Rb3+ {[%emt 0:00:20]} 76. Ke2 {[%emt 0:00:02]} Kd4 {[%emt 0:00:28]} 77. Rxa6 {[%emt 0:00:57]} Rb2+ {[%emt 0:00:00]} 78. Nd2 {[%emt 0:00:44]} Nf4+ {[%emt 0:00:40]} 79. Kd1 {[%emt 0:00:44]} Rb4 {[%emt 0:00:27]} 80. Kc2 {[%emt 0:00:44]} Ke3 {[%emt 0:00:58]} 81. Ra3+ {[%emt 0:00:02]} Ke2 {[%emt 0:00:35]} 82. Ne4 {[%emt 0:01:28]} Rc4+ {[%emt 0:00:33]} 83. Kb2 {[%emt 0:00:16]} Rc6 {[%emt 0:00:35]} 84. Rb3 {[%emt 0:00:50]} Nd3+ {[%emt 0:00:09]} 85. Kb1 {[%emt 0:00:20]} Kxf3 {[%emt 0:00:34]} 86. Rxd3+ {[%emt 0:00:12]} Kxe4 {[%emt 0:00:04]} 87. Rg3 {[%emt 0:00:57]} Kf4 {[%emt 0:00:03]} 88. Rg1 {[%emt 0:00:02]} g5 {[%emt 0:00:13]} 89. hxg5 {[%emt 0:00:04]} hxg5 {[%emt 0:00:03]} 90. Rf1+ {[%emt 0:00:16]} Ke3 {[%emt 0:00:12]} 91. Rf8 {[%emt 0:00:04]} g4 {[%emt 0:00:07]} 92. Rg8 {[%emt 0:00:03]} Kf3 {[%emt 0:00:09]} 93. Kb2 {[%emt 0:00:01]} g3 {[%emt 0:00:08]} 94. Kb3 {[%emt 0:00:04]} g2 {[%emt 0:00:14]} 95. Rf8+ {[%emt 0:00:12]} Ke2 {[%emt 0:00:11]} 96. Rg8 {[%emt 0:00:05]} Kf2 {[%emt 0:00:04]} 97. Rf8+ {[%emt 0:00:02]} Kg1 {[%emt 0:00:06]} 98. Rf7 {[%emt 0:00:06]} Rh6 {[%emt 0:00:58]} 0-1